bitfinex/quotes_ETHUSD_20240614
["timestamp","ask_amount","ask_price","bid_price","bid_amount"]
[1718344729117,0.696,3522.2,3521.9,2.3003]
[1718344729796,0.696,3522.2,3522.0,0.14408324]
[1718344733721,0.696,3522.2,3521.6,2.3281]
[1718344733908,0.696,3522.0,3521.7,0.14428163]
[1718344734300,0.696,3522.0,3521.3,2.3281]
[1718344734633,0.696,3522.0,3521.4,0.14448006]
[1718344735452,0.696,3522.0,3521.4,0.2012691]
[1718344735648,0.696,3522.2,3521.4,0.2012691]
[1718344735942,0.696,3522.2,3521.4,0.82380601]
[1718344737145,0.696,3522.1,3521.5,1.43344514]
[1718344737449,0.696,3522.5,3521.6,2.68786355]
[1718344737745,0.696,3522.5,3521.6,4.81730869]
[1718344737954,0.696,3522.5,3521.7,0.71458456]
[1718344738150,0.696,3522.5,3521.8,0.20113107]
[1718344740748,0.0567294,3522.9,3521.9,2.2784]
[1718344740954,0.696,3522.7,3522.0,0.20099545]
[1718344741818,0.0567294,3522.9,3522.0,0.73333797]
[1718344742013,0.0567294,3523.1,3522.2,2.3111]
[1718344742264,3.23826148,3523.2,3522.4,2.3111]
[1718344742467,0.696,3523.3,3522.5,0.05677177]
[1718344742646,0.7527294,3523.3,3522.5,0.20065747]
[1718344743560,0.696,3523.1,3522.5,0.20065747]
[1718344743924,0.696,3522.9,3522.5,0.20065747]
[1718344744127,0.696,3522.9,3522.5,0.1438857]
[1718344744871,0.696,3522.9,3522.5,0.20065747]
[1718344745079,0.696,3522.9,3522.6,0.39452026]
[1718344745234,0.696,3523.1,3522.6,0.39452026]
[1718344745429,0.696,3523.1,3522.7,0.14385555]
[1718344745932,0.0567294,3523.4,3522.7,0.14385555]
[1718344746130,0.696,3523.0,3522.7,0.14385555]
[1718344746471,0.696,3523.0,3522.5,0.05677177]
[1718344746649,0.696,3523.2,3522.9,2.3146]
[1718344747168,0.696,3523.5,3523.0,0.14365727]
[1718344749073,2.992,3524.4,3523.4,0.696]
[1718344749074,3.23826148,3524.4,3523.4,0.696]
[1718344749281,2.3037,3524.6,3523.5,3.89539623]
[1718344749574,0.696,3524.1,3523.6,0.14295768]
[1718344749773,0.696,3524.1,3523.5,3.83864514]
[1718344750076,0.696,3524.1,3523.6,0.14295768]
[1718344750294,0.696,3523.9,3523.6,0.14295768]
[1718344750473,0.696,3523.9,3523.5,2.4052]
[1718344750671,0.696,3523.9,3523.7,0.14289162]
[1718344750979,0.696,3523.9,3523.8,0.14282556]
[1718344751181,0.696,3523.9,3523.5,2.4052]
[1718344751383,0.696,3523.9,3523.6,0.14295768]
[1718344751681,0.696,3523.9,3523.5,2.4052]
[1718344751977,0.696,3523.9,3523.6,0.14280927]
[1718344752278,0.696,3523.9,3523.5,2.4052]
[1718344752481,0.696,3523.9,3523.7,0.14274321]
[1718344752794,0.696,3523.9,3523.8,0.14267715]
[1718344753143,0.696,3523.9,3523.5,2.4052]
[1718344753339,0.696,3523.9,3523.6,0.14280927]
[1718344753543,0.696,3523.9,3523.5,2.4052]
[1718344753786,0.696,3523.9,3523.6,0.14283709]
[1718344753997,0.696,3523.9,3523.5,2.4052]
[1718344754287,0.696,3523.9,3523.7,0.14277103]
[1718344754442,0.696,3523.9,3523.6,0.14283709]
[1718344754640,0.696,3523.9,3523.8,0.14270497]
[1718344754839,0.696,3523.9,3523.7,0.14277103]
[1718344755062,0.696,3523.9,3523.5,2.4052]
[1718344755063,0.696,3523.9,3523.8,0.14270497]
[1718344755791,0.696,3523.9,3523.5,2.4052]
[1718344755994,0.696,3523.9,3523.6,0.14283709]
[1718344756491,0.696,3523.9,3523.5,2.4052]
[1718344756670,0.696,3523.9,3523.7,0.14277103]
[1718344756867,0.696,3523.9,3523.6,0.14283709]
[1718344757071,0.696,3523.9,3523.8,0.14270497]
[1718344757280,0.696,3523.9,3523.7,0.14277103]
[1718344757524,2.3872,3524.3,3523.8,0.14270497]
[1718344757656,3.0832,3523.9,3523.8,0.14270497]
[1718344757878,3.0832,3523.9,3522.7,2.4304]
[1718344757879,3.6332,3523.9,3522.7,2.4304]
[1718344758200,0.696,3523.4,3522.8,0.14312145]
[1718344759033,0.696,3523.4,3522.7,2.4304]
[1718344759423,0.0567294,3523.3,3522.8,0.14319565]
[1718344759778,0.0567294,3523.3,3522.7,2.4304]
[1718344759984,0.0567294,3523.3,3522.8,0.14326059]
[1718344760298,0.0567294,3523.3,3522.7,2.4304]
[1718344760502,0.0567294,3523.2,3522.9,0.1431945]
[1718344760706,0.696,3523.0,3522.8,0.14326059]
[1718344760896,0.696,3523.0,3522.2,1.706]
[1718344761099,0.0567294,3522.9,3522.2,3.13944514]
[1718344762231,0.0567294,3522.9,3522.0,2.3373]
[1718344762427,0.0567294,3522.9,3522.0,4.55408846]
[1718344762988,0.0567294,3522.9,3522.0,3.85808846]
[1718344763223,0.0567294,3523.2,3522.0,2.3373]
[1718344763397,0.55,3523.1,3522.0,2.3373]
[1718344763729,0.0567294,3523.0,3522.1,0.05677771]
[1718344764022,2.2704,3523.3,3522.1,0.05677771]
[1718344764023,2.2704,3523.3,3522.2,1.43344514]
[1718344764207,4.91026148,3523.6,3522.3,0.05677117]
[1718344764385,4.91026148,3523.6,3522.4,0.14353428]
[1718344764386,1.12712755,3523.5,3522.4,0.14353428]
[1718344764923,1.12712755,3523.5,3522.5,0.0567719]
[1718344765097,1.12712755,3523.5,3522.6,0.14340206]
[1718344765344,1.12712755,3523.5,3522.3,1.43344514]
[1718344765545,1.12712755,3523.5,3522.4,0.14353428]
[1718344765735,0.8501989,3523.4,3522.4,0.14353428]
[1718344765935,0.0567294,3523.3,3522.4,0.14353428]
[1718344767150,0.0567294,3523.3,3522.5,0.05677191]
[1718344767349,0.0567294,3523.3,3522.6,0.14340206]
[1718344767552,0.0567294,3523.3,3522.5,0.05677191]
[1718344767746,0.61608223,3523.3,3522.6,0.14340206]
[1718344767948,0.0567294,3523.2,3522.5,0.05677191]
[1718344768144,0.0567294,3523.2,3522.6,0.14340206]
[1718344768942,0.0567294,3523.2,3522.3,1.43344514]
[1718344769150,0.0567294,3523.2,3522.1,1.706]
[1718344769151,0.0567294,3523.2,3522.4,0.14353428]
[1718344769371,0.0567294,3523.2,3522.1,1.706]
[1718344769559,0.0567294,3523.2,3522.2,0.1436665]
[1718344770082,2.4006,3523.1,3522.2,0.1436665]
[1718344770251,0.35839762,3523.0,3522.2,0.1436665]
[1718344772284,0.0567294,3523.0,3522.2,0.1436665]
[1718344772584,2.4006,3523.1,3522.3,0.05677451]
[1718344772762,2.4006,3523.1,3522.4,0.14388373]
[1718344772963,0.55935283,3523.3,3522.4,0.14388373]
[1718344773164,0.0567294,3523.2,3522.4,0.14388373]
[1718344773366,0.55,3523.5,3522.5,2.46847447]
[1718344773561,0.0567294,3523.6,3522.6,1.98177699]
[1718344773898,0.0567294,3523.6,3522.7,0.05676653]
[1718344774403,0.0567294,3523.6,3522.8,0.14361932]
[1718344774607,0.0567294,3523.6,3522.8,0.20038589]
[1718344775157,2.2972,3523.7,3522.8,0.20038589]
[1718344775388,0.29372,3523.8,3522.8,0.20038589]
[1718344775587,0.0567294,3523.7,3522.8,0.20038589]
[1718344779061,0.0567294,3523.7,3522.8,0.14361932]
[1718344779399,0.0567294,3523.7,3522.6,1.43344514]
[1718344779400,2.3216,3523.6,3522.2,2.3154]
[1718344779618,0.0567294,3523.5,3522.3,0.45891235]
[1718344779828,0.55,3523.4,3522.3,0.60271375]
[1718344779962,0.0567294,3523.3,3522.3,0.60271375]
[1718344780323,0.0567294,3523.3,3522.4,0.60575589]
[1718344780473,0.0567294,3523.3,3522.4,0.66252822]
[1718344780678,0.0567294,3523.3,3522.5,0.14366918]
[1718344782914,0.697,3523.0,3522.2,3.74884514]
[1718344783366,0.697,3523.0,3522.2,4.36402965]
[1718344783565,0.697,3523.0,3522.3,0.1438014]
[1718344784365,0.697,3523.0,3522.4,0.05677234]
[1718344784762,0.697,3523.0,3522.5,0.14365988]
[1718344786968,0.0567294,3523.3,3522.5,0.14365988]
[1718344786969,0.697,3522.8,3522.5,0.14365988]
[1718344787178,0.697,3522.8,3522.2,3.74884514]
[1718344787414,0.697,3523.0,3522.2,3.74884514]
[1718344787710,0.697,3523.0,3522.3,0.1437921]
[1718344788170,0.0567294,3522.9,3522.3,0.1437921]
[1718344788364,0.697,3522.8,3522.3,0.1437921]
[1718344788795,0.697,3522.6,3522.3,0.1437921]
[1718344788997,0.697,3522.6,3521.9,2.4778]
[1718344789206,0.697,3522.6,3521.9,3.91124514]
[1718344789365,0.697,3522.6,3522.0,0.14411416]
[1718344791371,0.697,3522.4,3522.0,0.14411416]
[1718344795092,0.0567294,3522.3,3522.0,0.14411416]
[1718344795995,0.0567294,3522.3,3521.5,2.4108]
[1718344796205,0.0567294,3522.3,3522.1,0.14404804]
[1718344796507,0.0567294,3522.3,3522.2,0.14398192]
[1718344796896,0.7537294,3522.4,3521.5,3.84424514]
[1718344797075,0.7537294,3522.4,3522.2,0.1442665]
[1718344797275,0.7537294,3522.4,3521.5,3.84424514]
[1718344797600,0.697,3522.4,3522.3,0.14420038]
[1718344797806,0.697,3522.4,3521.5,3.84424514]
[1718344798006,0.697,3522.4,3521.6,0.14466327]
[1718344798408,0.697,3522.4,3521.7,0.05678407]
[1718344798807,0.697,3522.4,3521.8,0.144531]
[1718344799018,0.31139,3522.8,3521.8,0.144531]
[1718344799312,0.697,3522.6,3521.9,2.4239]
[1718344799821,0.697,3522.6,3522.0,0.13953579]
[1718344800406,2.3267,3523.0,3522.0,0.52236149]
[1718344800606,3.23826148,3523.1,3522.1,2.2933]
[1718344800607,3.93526148,3523.1,3522.1,2.2933]
[1718344800785,3.23826148,3523.1,3522.4,0.697]
[1718344800988,2.4871,3523.8,3522.8,0.697]
[1718344801209,0.7537294,3523.7,3522.9,0.05676523]
[1718344801706,0.697,3523.5,3522.6,2.2933]
[1718344801911,0.697,3523.3,3522.7,1.43344514]
[1718344803779,2.4871,3523.8,3522.3,2.4704]
[1718344803780,0.697,3522.9,3522.3,2.4704]
[1718344804117,0.697,3522.7,3522.0,2.60993579]
[1718344804317,0.697,3522.7,3522.0,4.04338093]
[1718344804926,0.697,3522.5,3522.0,2.60993579]
[1718344805216,0.0567294,3522.4,3522.0,0.13953579]
[1718344805418,0.7537294,3522.5,3522.0,0.13953579]
[1718344806577,0.697,3522.5,3522.0,0.13953579]
[1718344806780,0.0567294,3522.6,3522.0,1.57298093]
[1718344807097,0.0567294,3523.1,3522.1,2.2725]
[1718344807283,0.697,3522.8,3522.2,0.05677685]
[1718344807591,0.697,3522.9,3522.2,0.05677685]
[1718344808927,0.0567294,3523.1,3522.2,0.05677685]
[1718344811017,0.0567294,3523.1,3522.2,1.49022199]
[1718344811323,4.1359,3523.5,3522.3,2.88650181]
[1718344811324,0.0567294,3523.4,3522.3,2.88650181]
[1718344812197,0.0567294,3523.6,3522.3,2.88650181]
[1718344812524,0.55,3523.5,3522.3,2.88650181]
[1718344812727,0.0567294,3523.6,3522.5,2.4555]
[1718344813051,0.0567294,3523.6,3522.7,2.4555]
[1718344813252,0.0567294,3523.6,3522.8,0.62193644]
[1718344813694,0.0567294,3523.8,3522.8,2.05538158]
[1718344813893,4.079,3524.1,3522.8,2.05538158]
[1718344813894,0.0567294,3524.0,3522.9,1.43344514]
[1718344814285,0.0567294,3524.0,3523.0,0.05676215]
[1718344815289,0.0567294,3524.0,3523.1,2.4422]
[1718344815490,0.0567294,3524.0,3523.1,2.89195785]
[1718344815725,0.0567294,3524.0,3523.2,0.13858856]
[1718344816721,0.0567294,3524.0,3523.2,0.1953507]
[1718344816918,0.0567294,3524.4,3523.3,0.05676214]
[1718344817082,0.24631294,3524.3,3523.4,2.4907]
[1718344817285,0.0567294,3524.2,3523.4,2.4907]
[1718344817628,0.0567294,3524.2,3523.5,0.13812863]
[1718344819819,0.0567294,3524.2,3523.4,2.4907]
[1718344820786,2.4139,3524.1,3522.8,2.4632]
[1718344820982,0.0567294,3524.0,3522.9,1.57195794]
[1718344822924,0.0567294,3524.0,3522.9,0.1385128]
[1718344823089,0.55,3523.9,3522.9,0.19527733]
[1718344823297,0.0567294,3523.8,3522.9,0.19527733]
[1718344823490,0.24631294,3524.3,3523.0,3.92684514]
[1718344823491,0.0567294,3524.0,3523.0,3.92684514]
[1718344823691,0.0567294,3524.2,3523.1,0.05675958]
[1718344823991,0.0567294,3524.2,3523.2,2.4934]
[1718344824215,0.0567294,3524.2,3523.3,0.13799597]
[1718344824422,0.50419363,3524.2,3523.2,2.4934]
[1718344824734,0.50419363,3524.2,3523.3,0.13799597]
[1718344825026,0.50419363,3524.2,3523.2,2.4934]
[1718344825402,0.0567294,3524.2,3523.3,0.19475627]
[1718344825725,0.0567294,3524.2,3523.4,3.80124514]
[1718344825933,0.0567294,3524.6,3523.4,3.80124514]
[1718344826143,1.43129564,3524.5,3523.5,0.13786382]
[1718344826447,0.0567294,3524.4,3523.6,0.13779775]
[1718344826891,0.0567294,3524.4,3523.4,2.3678]
[1718344827095,0.0567294,3524.4,3523.7,0.13773169]
[1718344827096,1.7287294,3524.4,3523.7,0.13773169]
[1718344827317,2.8518,3524.3,3523.4,2.3678]
[1718344827492,0.6579119,3524.2,3523.4,2.3678]
[1718344827697,0.55,3524.1,3523.5,0.13786382]
[1718344827903,0.0567294,3524.0,3523.5,0.13786382]
[1718344828123,0.0567294,3524.0,3523.0,2.4964]
[1718344828292,0.55,3523.9,3523.0,2.4964]
[1718344828492,0.0567294,3523.8,3523.1,0.13806349]
[1718344829831,2.4254294,3523.8,3523.1,0.13806349]
[1718344830139,0.0567294,3523.7,3523.1,0.13806349]
[1718344830306,0.0567294,3523.7,3522.7,2.4963]
[1718344830509,0.0567294,3523.7,3523.2,0.13799741]
[1718344830733,2.3687,3523.8,3522.1,2.4963]
[1718344830734,0.37185146,3523.6,3522.1,2.4963]
[1718344831041,0.37185146,3523.6,3522.7,2.4963]
[1718344831217,0.55,3523.5,3522.7,2.4963]
[1718344831417,0.0567294,3523.4,3522.8,0.13837257]
[1718344832301,2.4834,3523.2,3522.8,0.13837257]
[1718344832508,0.0567294,3523.1,3522.3,2.484]
[1718344832708,0.0567294,3523.1,3522.9,0.13845424]
[1718344832952,0.0567294,3523.1,3521.8,1.706]
[1718344832953,0.0567294,3523.1,3521.9,2.3255]
[1718344833111,0.0567294,3523.1,3523.0,0.13842818]
[1718344833314,2.72588086,3523.1,3521.5,2.3255]
[1718344833606,0.55,3523.0,3521.6,0.13935377]
[1718344833836,0.0567294,3522.9,3521.6,0.13935377]
[1718344834042,0.55,3522.8,3521.6,0.13935377]
[1718344834357,0.0567294,3522.7,3521.6,0.13935377]
[1718344834639,0.0567294,3522.7,3521.7,0.38982989]
[1718344835011,0.0567294,3522.7,3521.8,0.1392215]
[1718344835348,4.0834,3522.6,3521.8,0.1392215]
[1718344835530,0.0567294,3522.5,3521.8,0.1392215]
[1718344835833,0.0567294,3522.5,3521.2,1.704]
[1718344836038,0.0567294,3522.5,3521.3,1.85326514]
[1718344836336,0.0567294,3522.5,3521.3,1.99305756]
[1718344836949,0.0567294,3522.5,3521.3,0.55961242]
[1718344837124,0.55,3522.4,3521.3,0.55961242]
[1718344837324,0.0567294,3522.3,3521.3,0.55961242]
[1718344837532,0.0567294,3522.2,3521.3,0.13979242]
[1718344837726,0.55,3522.1,3521.3,0.13979242]
[1718344837940,0.0567294,3522.0,3521.1,2.4942]
[1718344838249,0.0567294,3522.0,3521.2,0.13992943]
[1718344839057,0.0567294,3522.0,3520.8,1.704]
[1718344839266,0.0567294,3522.0,3520.9,0.42674444]
[1718344839441,2.4833,3521.9,3520.9,0.56687235]
[1718344839607,0.0567294,3521.8,3520.9,0.56687235]
[1718344840390,0.0567294,3521.8,3520.9,0.14012791]
[1718344840503,0.55,3521.7,3520.9,0.14012791]
[1718344840706,0.0567294,3521.6,3520.2,1.704]
[1718344840907,0.0567294,3521.6,3520.3,1.43344514]
[1718344841126,0.0567294,3521.6,3520.3,1.57418889]
[1718344841346,0.92331889,3521.6,3520.4,0.56042889]
[1718344841639,0.92331889,3521.6,3520.5,0.14061138]
[1718344841845,0.0567294,3521.6,3520.5,0.14061138]
[1718344842039,0.0567294,3521.6,3520.5,0.1974131]
[1718344842245,0.55,3521.5,3520.5,0.14061138]
[1718344842446,0.0567294,3521.4,3520.5,0.14061138]
[1718344845223,0.0567294,3521.7,3520.6,1.4902496]
[1718344845433,0.0567294,3521.7,3520.7,0.53070119]
[1718344845641,0.0567294,3521.7,3520.8,2.51149929]
[1718344846056,0.0567294,3521.7,3520.9,0.1410152]
[1718344847365,0.0567294,3521.7,3520.7,0.38952899]
[1718344847570,0.0567294,3521.7,3521.0,0.14089972]
[1718344847752,0.0567294,3521.7,3520.8,0.18229741]
[1718344847917,0.0567294,3521.7,3521.1,0.14083356]
[1718344848124,0.0567294,3521.7,3520.7,0.38952899]
[1718344848423,0.55,3521.6,3520.7,0.38952899]
[1718344848654,0.0567294,3521.5,3520.8,0.14103206]
[1718344849926,2.2916,3521.4,3520.8,0.14103206]
[1718344850126,0.0567294,3521.3,3520.8,0.14103206]
[1718344851656,0.0567294,3521.3,3520.1,2.3417]
[1718344851984,0.0567294,3521.3,3520.2,2.63981978]
[1718344852140,0.0567294,3521.3,3520.2,1.63176214]
[1718344854460,2.2916,3521.4,3520.3,0.05680528]
[1718344854461,0.0567294,3521.2,3520.3,0.05680528]
[1718344854836,0.0567294,3521.2,3520.4,0.14142622]
[1718344855868,0.0567294,3521.2,3520.2,0.05680692]
[1718344856031,0.0567294,3521.2,3520.5,0.14144942]
[1718344856236,0.0567294,3521.2,3520.3,0.29665758]
[1718344856437,0.0567294,3521.2,3520.4,0.1415156]
[1718344857531,0.0567294,3521.3,3520.4,0.19832249]
[1718344860534,0.0567294,3521.2,3520.4,0.1415156]
[1718344861439,2.3228,3521.1,3520.4,0.1415156]
[1718344861646,0.0567294,3521.0,3520.4,0.1415156]
[1718344862175,2.3228,3521.1,3520.4,0.1415156]
[1718344862896,0.0567294,3521.0,3520.4,0.1415156]
[1718344863443,0.0567294,3521.0,3519.8,2.4952]
[1718344863665,0.0567294,3521.0,3519.9,2.0519878]
[1718344866841,0.26055576,3520.9,3519.9,2.0519878]
[1718344867083,0.0567294,3520.8,3519.9,2.0519878]
[1718344867282,0.0567294,3520.8,3519.9,1.99517781]
[1718344868089,0.0567294,3521.0,3519.9,1.99517781]
[1718344868395,0.46188234,3521.0,3519.9,1.99517781]
[1718344869271,0.46188234,3521.0,3519.9,1.57525781]
[1718344869484,2.3810294,3520.9,3519.9,1.57525781]
[1718344870577,0.26055576,3520.8,3519.9,1.57525781]
[1718344870784,0.0567294,3520.7,3519.9,1.57525781]
[1718344871815,0.0567294,3520.8,3519.9,1.57525781]
[1718344873060,0.698,3520.5,3519.9,1.57525781]
[1718344873278,0.698,3520.5,3520.0,0.15752578]
[1718344873480,0.0567294,3520.8,3520.0,0.15752578]
[1718344873786,0.0567294,3520.8,3520.1,0.19860143]
[1718344873983,0.698,3520.7,3520.1,0.19860143]
[1718344875493,0.7547294,3520.7,3520.1,0.19860143]
[1718344875991,0.95855576,3520.6,3520.1,0.19860143]
[1718344878483,0.698,3520.6,3520.1,0.19860143]
[1718344879453,0.26055576,3520.5,3520.1,0.19860143]
[1718344880170,0.26055576,3520.5,3520.1,0.37755867]
[1718344880959,0.698,3520.6,3520.1,0.37755867]
[1718344881203,0.698,3520.6,3520.1,0.19860143]
[1718344884061,0.26055576,3520.5,3520.1,0.19860143]
[1718344884604,0.698,3520.4,3520.1,0.19860143]
[1718344884898,0.698,3520.6,3520.1,0.19860143]
[1718344885109,0.26055576,3520.3,3520.1,0.19860143]
[1718344894299,0.698,3520.2,3520.1,0.14179127]
[1718344894666,0.698,3520.2,3519.9,1.43344514]
[1718344894667,2.3341,3520.6,3519.9,1.43344514]
[1718344894869,0.698,3520.3,3520.0,0.14186363]
[1718344899308,0.698,3520.1,3520.0,0.14186363]
[1718344899811,2.2614,3520.9,3520.1,2.4695]
[1718344899981,0.698,3520.7,3520.2,0.14203338]
[1718344900179,1.05634234,3520.7,3520.0,0.05681048]
[1718344900482,0.698,3520.5,3520.1,0.14209957]
[1718344904324,0.26055576,3520.4,3520.1,0.14209957]
[1718344908630,0.698,3520.3,3520.1,0.14209957]
[1718344908930,0.698,3520.3,3519.9,1.43344514]
[1718344909086,0.698,3520.3,3520.2,0.14193472]
[1718344909284,0.698,3520.3,3519.9,1.43344514]
[1718344909485,2.4565,3520.4,3520.0,0.14206711]
[1718344910014,0.698,3520.5,3520.1,0.05681085]
[1718344910224,0.698,3520.5,3520.2,0.14194705]
[1718344912326,6.23826148,3521.2,3520.3,3.19425575]
[1718344912327,2.4806,3521.1,3520.3,3.19425575]
[1718344912478,3.23826148,3521.2,3521.0,0.698]
[1718344912681,3.23826148,3521.9,3521.1,1.43344514]
[1718344912934,3.93626148,3521.9,3521.2,0.19807959]
[1718344913098,3.23826148,3521.9,3521.3,0.05679123]
[1718344913414,3.23826148,3521.9,3521.4,0.1411561]
[1718344913415,0.698,3521.7,3521.4,0.1411561]
[1718344915650,0.698,3521.7,3521.1,1.43344514]
[1718344915935,0.698,3521.7,3521.2,0.1412884]
[1718344917133,0.698,3521.5,3521.2,0.1412884]
[1718344917342,0.698,3521.3,3521.2,0.1412884]
[1718344917626,0.698,3521.3,3520.6,2.422]
[1718344917828,0.698,3521.3,3521.2,0.1412884]
[1718344918131,0.698,3521.6,3521.2,0.1412884]
[1718344918336,0.698,3521.6,3520.8,0.05679228]
[1718344918493,0.698,3521.6,3521.3,0.14122225]
[1718344918691,0.698,3521.6,3521.0,0.05679229]
[1718344918893,0.698,3522.0,3521.1,3.8704997]
[1718344919224,0.698,3522.0,3521.2,0.05679065]
[1718344919434,0.698,3522.0,3521.3,0.14122225]
[1718344919634,0.698,3521.8,3521.3,0.19801308]
[1718344922846,2.4362,3522.4,3521.4,1.43344514]
[1718344923142,2.4362,3522.4,3520.2,3.5908855]
[1718344923143,0.698,3521.7,3521.5,0.14075702]
[1718344923648,0.698,3521.7,3521.0,0.05679469]
[1718344923967,0.0567294,3521.6,3520.9,2.2767]
[1718344924248,0.698,3521.2,3521.0,0.14108778]
[1718344924621,0.698,3521.2,3520.2,2.402]
[1718344924921,0.698,3521.2,3520.4,1.704]
[1718344925121,2.4214294,3521.6,3520.5,0.14110112]
[1718344925304,2.4214294,3521.6,3520.1,2.3628]
[1718344925305,2.4214294,3521.6,3520.2,0.05680554]
[1718344925510,2.4214294,3521.6,3520.3,1.63148304]
[1718344925711,0.698,3521.3,3520.3,1.63148304]
[1718344926548,3.23826148,3521.9,3520.6,2.402]
[1718344926710,3.23826148,3521.9,3521.0,2.9577]
[1718344926910,0.7547294,3521.8,3520.9,1.704]
[1718344927110,0.698,3521.4,3521.0,0.14092438]
[1718344927340,0.698,3521.4,3520.7,2.3505]
[1718344927554,0.0567294,3521.7,3521.1,0.14085822]
[1718344927555,0.698,3521.2,3521.1,0.14085822]
[1718344927714,0.698,3521.2,3520.7,1.43344514]
[1718344928026,0.698,3521.2,3521.1,0.14079965]
[1718344928223,0.698,3521.2,3520.7,1.43344514]
[1718344928623,0.698,3521.2,3520.4,2.3505]
[1718344928833,0.698,3521.2,3520.8,0.14099814]
[1718344929046,0.7547294,3521.2,3520.4,3.78394514]
[1718344929212,0.7547294,3521.2,3520.9,0.14093197]
[1718344929417,0.7547294,3521.2,3520.4,3.78394514]
[1718344929617,0.7547294,3521.2,3521.0,0.14086581]
[1718344929856,1.06937234,3521.2,3520.4,3.78394514]
[1718344930030,0.7547294,3521.2,3521.1,0.14079965]
[1718344930230,0.698,3521.2,3520.4,3.78394514]
[1718344930480,0.7547294,3521.2,3521.1,0.14079965]
[1718344930940,0.7547294,3521.2,3520.1,3.9902]
[1718344931147,0.698,3520.9,3520.2,1.57491743]
[1718344931450,0.698,3520.9,3520.3,0.62631174]
[1718344931654,0.698,3521.1,3520.3,2.05975688]
[1718344931845,0.698,3521.1,3520.4,0.14133992]
[1718344932242,0.0567294,3521.2,3520.5,0.05680429]
[1718344932559,0.0567294,3521.2,3520.6,0.14124455]
[1718344932560,2.9502,3521.1,3520.6,0.14124455]
[1718344932743,0.698,3520.9,3520.6,0.14124455]
[1718344932913,0.698,3520.9,3520.6,0.11324455]
[1718344933118,0.698,3520.9,3520.1,3.9902]
[1718344933326,0.142,3520.6,3520.2,1.57401801]
[1718344933533,0.142,3520.6,3520.2,2.20023981]
[1718344933860,0.142,3520.6,3520.2,0.76679467]
[1718344934377,0.142,3520.6,3520.2,0.14057287]
[1718344935767,0.142,3520.6,3519.8,5.402]
[1718344935978,0.142,3520.6,3520.3,0.14050668]
[1718344936180,0.698,3520.4,3520.3,0.14050668]
[1718344936334,0.84,3520.6,3519.9,1.43344514]
[1718344936539,0.84,3520.6,3520.3,0.14050668]
[1718344936736,0.84,3520.6,3519.9,1.43344514]
[1718344936935,0.84,3520.6,3520.4,0.14079501]
[1718344937178,0.84,3520.6,3519.9,1.43344514]
[1718344937349,0.84,3520.6,3520.5,0.14072882]
[1718344937534,0.84,3520.6,3519.9,1.43344514]
[1718344937731,0.84,3520.6,3520.5,0.14072882]
[1718344937934,0.84,3520.6,3519.9,1.43344514]
[1718344938165,0.84,3520.6,3520.5,0.14072882]
[1718344938368,0.84,3520.6,3519.9,1.43344514]
[1718344938596,0.84,3520.6,3520.5,0.14072882]
[1718344938753,0.84,3520.6,3519.9,1.43344514]
[1718344939277,0.84,3520.6,3520.0,0.14105978]
[1718344940760,0.142,3520.6,3520.1,2.489]
[1718344941376,0.142,3520.6,3520.2,0.14092739]
[1718344941531,0.142,3520.6,3520.2,0.13952242]
[1718344942569,0.84,3520.6,3520.2,0.13952242]
[1718344942869,0.142,3520.6,3520.2,0.13952242]
[1718344943074,0.142,3520.6,3520.2,0.54571918]
[1718344943272,0.142,3520.6,3520.2,0.13952242]
[1718344949777,0.142,3520.6,3519.9,1.43344514]
[1718344949946,0.142,3520.6,3520.3,0.14081436]
[1718344950484,0.142,3520.6,3519.9,1.43344514]
[1718344950653,0.142,3520.6,3520.4,0.14074818]
[1718344950849,0.142,3520.6,3519.9,1.43344514]
[1718344951049,0.142,3520.6,3520.5,0.14074673]
[1718344951242,0.1987294,3520.6,3519.9,1.43344514]
[1718344951442,0.1987294,3520.6,3520.5,0.14074673]
[1718344951677,0.52937234,3520.6,3519.9,1.43344514]
[1718344951873,0.1987294,3520.6,3520.5,0.1407714]
[1718344952046,0.1987294,3520.6,3519.9,1.43344514]
[1718344952248,0.1987294,3520.6,3520.5,0.1407714]
[1718344952474,0.1987294,3520.6,3519.9,1.43344514]
[1718344952656,0.1987294,3520.6,3520.5,0.1407714]
[1718344953014,0.52937234,3520.6,3519.9,1.43344514]
[1718344953144,0.52937234,3520.6,3520.5,0.1407714]
[1718344953343,0.52937234,3520.6,3519.9,1.43344514]
[1718344953547,0.52937234,3520.6,3520.0,0.14111468]
[1718344953739,0.698,3520.5,3520.0,0.14111468]
[1718344953947,0.7547294,3520.5,3520.0,0.14111468]
[1718344955184,0.698,3520.3,3520.0,0.14111468]
[1718344961990,33.0,3520.1,3520.0,0.14111468]
[1718344962486,33.0,3520.1,3519.9,1.43344514]
[1718344962995,2.2861,3519.9,3518.9,1.704]
[1718344963292,0.698,3519.6,3518.9,1.704]
[1718344963476,0.698,3519.6,3519.0,1.43344514]
[1718344964298,0.698,3519.6,3519.1,0.0568246]
[1718344964503,33.0,3520.1,3519.2,1.43344514]
[1718344964802,0.698,3520.0,3519.3,0.05682118]
[1718344965001,0.698,3520.0,3519.3,1.49026632]
[1718344965297,33.0,3520.1,3519.3,1.49026632]
[1718344965528,3.56489028,3520.0,3519.3,1.49026632]
[1718344965696,3.62161968,3520.0,3519.3,1.43344514]
[1718344966489,0.698,3519.8,3519.3,1.43344514]
[1718344972308,2.3413,3519.6,3518.8,2.4043]
[1718344972510,0.698,3519.4,3518.9,1.43344514]
[1718344972702,3.0393,3519.6,3518.9,1.57571081]
[1718344973829,0.0567294,3519.5,3518.9,1.57571081]
[1718344975109,0.698,3519.4,3518.9,1.57571081]
[1718344977436,0.698,3519.4,3518.9,0.14226567]
[1718344977588,0.0567294,3519.3,3518.9,0.14226567]
[1718344977787,0.698,3519.2,3518.9,0.14226567]
[1718344978024,0.0567294,3519.1,3518.5,2.2511]
[1718344978288,0.0567294,3519.1,3518.5,3.68454514]
[1718344978482,0.0567294,3519.1,3518.6,0.14274205]
[1718344979405,0.698,3519.0,3518.6,0.14274205]
[1718344979816,0.698,3519.0,3518.2,2.2511]